Cogmind - Beta 13 X1 @@@ ROGUE MODE // 2023.12.10 @ 19:22:08 Player: Plexion Result: Self-destructed Performance ------------- Evolutions (3) 1500 Regions Visited (11) 2200 Robots Destroyed (235) 1175 Value Destroyed (7742) 7742 Prototype IDs (30) 600 Alien Tech Used (0) 0 Bonus (1475) 1475 TOTAL SCORE: 14692 Bonus ------- High Alert Combat Kills 747 Follower Combat Kills 272 Entered Garrisons 200 Aligned with FarCom 300 Friendly Fire -44 Cogmind --------- Core Integrity 495/700 Matter 300/300 Energy 200/200 System Corruption 6% Temperature Cool (0) Movement Treading (320) Ox2 Location -7/Waste Parts ------- > --- POWER (1) -------- Cold Fusion Reactor > --- PROPULSION (4) --- Light Treads Light Treads > --- UTILITY (6) ------ Huge Storage Unit Improved Signal Interpreter Improved Medium Armor Plating Improved Shield Generator Hacking Suite > --- WEAPON (2) ------- Enhanced Autogun Enhanced Autogun > --- INVENTORY (25) --- Micro Nuclear Core Cesium-ion Thruster Cooled VTOL Module Medium Storage Unit High-capacity Matter Pod (59) Improved Sensor Array Advanced Terrain Scan Processor Improved Armor Integrity Analyzer Improved Medium Armor Plating Hacking Suite Hacking Suite Hacking Suite Improved Hacking Suite Improved Hacking Suite System Shield Enhanced Autogun Enhanced Autogun Enhanced Autogun 8R-AWN's Boregun 8R-AWN's Boregun Rocket Launcher Improved Grenade Launcher Katana Peak State ------------ > --- POWER ------------ Cold Fusion Reactor > --- PROPULSION ------- Light Treads Light Treads Armored Huge Wheel > --- UTILITY ---------- Huge Storage Unit Makeshift Salvage Targeting Computer Improved Light Armor Plating Improved Medium Armor Plating Hacking Suite System Restoration Module > --- WEAPON ----------- Enhanced Autogun Enhanced Autogun > --- INVENTORY -------- Micro Nuclear Core Light Treads Light Treads Cesium-ion Thruster Cooled VTOL Module Medium Storage Unit High-capacity Matter Pod Improved Sensor Array Improved Signal Interpreter Improved Armor Integrity Analyzer Hacking Suite Hacking Suite Hacking Suite Improved Hacking Suite Improved Hacking Suite System Shield Enhanced Autogun Enhanced Autogun Enhanced Autogun Enhanced Autogun 8R-AWN's Boregun 8R-AWN's Boregun Rocket Launcher Improved Grenade Launcher Katana [Rating: 52] Favorites ----------- Power Heavy Ion Engine Engine Heavy Ion Engine Power Core Light Nuclear Core Reactor Cold Fusion Reactor Propulsion Light Treads Treads Light Treads Wheel Armored Wheel Flight Unit Improved Flight Unit Utility Huge Storage Unit Device Shield Generator Storage Huge Storage Unit Processor Makeshift Salvage Targeting Computer Hackware Hacking Suite Protection Light Armor Plating Weapon Improved Assault Rifle Energy Gun EM Pulse Gun Ballistic Gun Improved Assault Rifle Launcher Grenade Launcher Slashing Weapon Katana Build | -11 -10 -10 -9 -9 -9 -8 -8 -8 -8 -7 -7 ------- Run | Jun Mat Min Mat Min Exi Min Mat Gar Sto Fac Was Slots Evolved 6 | . . . 2 . . . 2 . . 2 . Power . | . . . . . . . . . . . . Propulsion 2 | . . . 1 . . . 1 . . . . Utility 4 | . . . 1 . . . 1 . . 2 . Weapon . | . . . . . . . . . . . . Parts Attached 187 | 7 15 8 19 . 17 10 23 16 29 43 . Power 11 | 1 1 1 2 . 1 . 1 1 3 . . Engine 9 | 1 1 1 2 . 1 . 1 . 2 . . Core 1 | . . . . . . . . 1 . . . Reactor 1 | . . . . . . . . . 1 . . Propulsion 52 | 2 5 1 8 . 5 1 8 2 11 9 . Treads 46 | 2 3 1 6 . 5 1 8 2 10 8 . Leg . | . . . . . . . . . . . . Wheel 3 | . . . 2 . . . . . . 1 . Hover . | . . . . . . . . . . . . Flight 3 | . 2 . . . . . . . 1 . . Utility 50 | 1 5 1 5 . 5 1 7 1 5 19 . Device 15 | . 1 . 1 . 3 . . . 1 9 . Storage 4 | 1 2 . 1 . . . . . . . . Processor 4 | . 1 . . . 1 . . . . 2 . Hackware 3 | . . . . . . . . 1 . 2 . Protection 24 | . 1 1 3 . 1 1 7 . 4 6 . Artifact . | . . . . . . . . . . . . Weapon 74 | 3 4 5 4 . 6 8 7 12 10 15 . Energy Gun 1 | 1 . . . . . . . . . . . Energy Cannon . | . . . . . . . . . . . . Ballistic Gun 47 | 2 4 3 4 . 5 4 4 5 7 9 . Ballistic Cannon . | . . . . . . . . . . . . Launcher 17 | . . 2 . . 1 4 2 3 1 4 . Special Weapon . | . . . . . . . . . . . . Impact Weapon . | . . . . . . . . . . . . Slashing Weapon 9 | . . . . . . . 1 4 2 2 . Piercing Weapon . | . . . . . . . . . . . . Special Melee Weapon . | . . . . . . . . . . . . Unidentified Prototypes 7 | . 1 . 2 . 1 . . . 3 . . Corrupted Parts 1 | . . . . . 1 . . . . . . System Corruption 6 | . . . . . 6 . . . . . . Parts Lost 27 | . . 3 1 . 1 1 8 . 4 9 . Power 3 | . . 1 . . 1 . 1 . . . . Propulsion 7 | . . . . . . . 2 . 1 4 . Utility 14 | . . 1 1 . . 1 4 . 2 5 . Weapon 3 | . . 1 . . . . 1 . 1 . . Highest Loss Streak 4 | . . 2 1 . 1 1 4 . 2 2 . To Critical Strikes . | . . . . . . . . . . . . Average Slot Usage (%) 96 | . 96 95 99 100 99 100 93 100 99 87 76 Engine 7 | . 13 14 10 11 10 11 8 6 1 . . Reactor 1 | . . . . . . . . . 4 7 7 Treads 28 | . 27 28 26 22 26 33 35 36 36 18 15 Wheel 3 | . . . 6 11 6 . . . . 5 . Device 4 | . 2 . 3 11 10 8 . . 1 7 7 Storage 10 | . 14 14 11 11 11 11 9 9 9 7 7 Hackware 3 | . . . . . . . . 8 9 12 7 Protection 14 | . 3 14 18 11 11 13 21 18 16 9 7 Ballistic Gun 18 | . 27 15 22 22 21 21 17 11 17 14 15 Naked Turns . | . . . . . . . . . . . . Heaviest Build 119 | 14 34 34 101 99 119 117 117 117 114 117 109 Greatest Support 86 | 40 40 40 60 12 66 66 86 82 85 80 40 Greatest Overweight (x) 9 | . . . 8 8 9 1 1 1 1 4 2 Average Overweight (x) 2 | . . . 4 8 5 1 1 1 1 2 2 Largest Inventory Capacity 25 | 8 15 15 25 25 25 25 25 25 25 25 25 Average Capacity 23 | 7 11 15 24 25 25 25 25 25 25 25 25 Most Carried 25 | 3 15 15 25 25 25 25 25 25 25 25 23 Average Carried 22 | 1 8 14 23 24 23 24 22 24 24 24 23 Final Capacity 25 | 8 15 15 25 25 25 25 25 25 25 25 25 Final Carried 25 | 3 14 15 25 25 25 24 25 25 25 23 23 Class Distribution -------------------- 55% | Mutant 38% | Scavenger-Mutant 5% | Hacker-Mutant Dominant Class ---------------- Mutant | -10/Materials Mutant | -10/Mines Mutant | -9/Materials Mutant | -9/Mines Mutant | -9/Exiles Mutant | -8/Mines Scavenger-Mutant | -8/Materials Scavenger-Mutant | -8/Garrison Scavenger-Mutant | -8/Storage Scavenger-Mutant | -7/Factory Mutant | -7/Waste Resources | -11 -10 -10 -9 -9 -9 -8 -8 -8 -8 -7 -7 ----------- Run | Jun Mat Min Mat Min Exi Min Mat Gar Sto Fac Was Matter Collected 7803 | 229 315 482 832 48 1096 453 685 276 1418 1969 . Remotely . | . . . . . . . . . . . . Salvage Created 8815 | . 387 27 1594 131 591 420 995 354 1747 2569 . Parts 583 | . 20 . 111 11 62 27 58 29 103 162 . Haulers Intercepted 17 | . 1 . 6 . . . . . 6 4 . Recyclers Shooed 3 | . 1 . . . . . 1 . . 1 . Parts Field Recycled . | . . . . . . . . . . . . Retrieved Matter . | . . . . . . . . . . . . Parts Self-Destructed . | . . . . . . . . . . . . Prevented . | . . . . . . . . . . . . Kills | -11 -10 -10 -9 -9 -9 -8 -8 -8 -8 -7 -7 ------- Run | Jun Mat Min Mat Min Exi Min Mat Gar Sto Fac Was Combat Hostiles Destroyed 173 | . 10 10 24 2 6 13 22 17 27 42 . Guns 118 | . 10 1 24 2 1 2 18 5 25 30 . AOE 55 | . . 9 . . 5 11 4 12 2 12 . Classes Destroyed 19 | . 3 2 8 1 2 1 . . . 2 . Worker 15 | . . . 3 1 . 3 1 . 2 5 . Builder 7 | . . . 2 . . 1 . . . 4 . Tunneler 2 | . . . . 1 . . . . . 1 . Hauler 17 | . 1 . 6 . . . . . 6 4 . Recycler 4 | . . . . . . 1 . . . 3 . Mechanic 4 | . . . 1 . . . 1 . 1 1 . Operator 7 | . . . 1 . . . 3 . 2 1 . Turret 1 | . . . . . 1 . . . . . . Watcher 10 | . . . 4 . . . 1 . 1 4 . Swarmer 29 | . 3 . . . . 7 3 8 . 8 . Grunt 87 | . 7 . 16 1 . 6 15 4 15 23 . Brawler 6 | . . . 1 . . . . 2 1 2 . Duelist 5 | . . . 1 1 . . 2 1 . . . Sentry 25 | . . . 6 . . . 2 2 11 4 . Demolisher 1 | . . 1 . . . . . . . . . Hunter 1 | . . . . . . . . . . 1 . Programmer 4 | . . . . . . . . . . 4 . Zionite 8 | . . . . . 8 . . . . . . Assembled 14 | . . 9 . . 5 . . . . . . Best Kill Streak 10 | . 3 7 4 2 5 5 6 5 4 10 . Combat Bots Only 7 | . 3 7 3 2 5 4 6 5 4 6 . Max Kills in Single Turn 4 | . 1 2 2 2 2 4 2 4 1 4 . Gunslinging 1 | . . . 1 1 . . . . . . . Exploded 4 | . . 2 . . 2 3 2 4 1 4 . Melee . | . . . . . . . . . . . . Uniques/NPCs Destroyed 4 | . . . . . 4 . . . . . . 8R-AWN (-9/Exiles) EX-BIN (-9/Exiles) EX-DEC (-9/Exiles) EX-HEX (-9/Exiles) Combat | -11 -10 -10 -9 -9 -9 -8 -8 -8 -8 -7 -7 -------- Run | Jun Mat Min Mat Min Exi Min Mat Gar Sto Fac Was Damage Taken 9379 | . 387 646 1015 25 824 219 1502 534 1891 2336 . Core 971 | . 22 98 198 . 64 13 129 59 183 205 . Absorbed by Shields 717 | . . . 75 9 68 87 . . . 478 . Redirected to Shielding 33 | . . . 30 . . . 3 . . . . Ignored by Resistances 534 | . . . . . 386 28 20 100 . . . Regen/Repaired (Parts) 896 | . 212 . 130 . . . 316 . . 238 . Core Remaining (%) 53 | 100 . 52 . . . 31 . . 32 . . Volleys Fired 731 | . 33 18 109 8 134 16 81 34 124 174 . Largest 2 | . 2 2 2 2 2 2 2 2 2 2 . Hottest 53 | . 46 46 46 46 53 46 46 53 50 50 . Shots Fired 1317 | . 63 25 218 16 176 24 154 61 244 336 . Gun 1261 | . 63 14 218 16 170 15 146 55 241 323 . Cannon . | . . . . . . . . . . . . Launcher 56 | . . 11 . . 6 9 8 6 3 13 . Special . | . . . . . . . . . . . . Kinetic 1261 | . 63 14 218 16 170 15 146 55 241 323 . Thermal . | . . . . . . . . . . . . Explosive 56 | . . 11 . . 6 9 8 6 3 13 . Electromagnetic . | . . . . . . . . . . . . Robot Hit Streak 30 | . 13 3 19 8 30 8 11 16 23 22 . Robot Miss Streak 6 | . 2 2 4 1 3 1 3 3 3 6 . Penetration Max 1 | . . . . . 1 . . . . . . Secondary Targets 13 | . 1 . 5 1 . . 2 . 1 3 . Max Gunslinging Chain 1 | . 1 . 1 1 . . 1 . 1 1 . Shots Hit Robots 915 | . 45 9 163 14 125 16 108 29 181 225 . Core Hits 453 | . 18 19 62 5 43 26 55 29 77 119 . Critical Kills 3 | . . . . . 3 . . . . . . Critical Parts Destroyed 14 | . . . 4 . 9 . . . . 1 . Critical Strikes 17 | . . . 4 . 12 . . . . 1 . Destroy 17 | . . . 4 . 12 . . . . 1 . Melee Attacks 20 | . . . . . . . 2 12 3 3 . Impact . | . . . . . . . . . . . . Slashing 20 | . . . . . . . 2 12 3 3 . Piercing . | . . . . . . . . . . . . Sneak Attacks . | . . . . . . . . . . . . Combat Hostiles . | . . . . . . . . . . . . Follow-up Attacks . | . . . . . . . . . . . . Damage Inflicted 19771 | . 673 661 2630 209 2084 1069 2220 1209 3383 5633 . Guns 14404 | . 673 128 2569 209 1722 176 1648 428 2866 3985 . Cannons . | . . . . . . . . . . . . Explosions 5211 | . . 527 . . 362 864 563 781 471 1643 . Melee . | . . . . . . . . . . . . Ramming 156 | . . 6 61 . . 29 9 . 46 5 . Kinetic 14404 | . 673 128 2569 209 1722 176 1648 428 2866 3985 . Thermal . | . . . . . . . . . . . . Explosive 5211 | . . 527 . . 362 864 563 781 471 1643 . Electromagnetic . | . . . . . . . . . . . . Impact . | . . . . . . . . . . . . Slashing . | . . . . . . . . . . . . Piercing . | . . . . . . . . . . . . Highest Corruption 6 | . . . . . 6 6 . . 1 3 6 Average Corruption 3 | . . . . . 6 6 . . 1 1 6 Corruption Purged 3 | . . . . . . . . . . 3 . Corruption Blocked . | . . . . . . . . . . . . Effects 81 | . . . . . 28 31 . . 6 15 1 Message Errors 21 | . . . . . 8 7 . . 3 3 . Matter Fused 23 | . . . . . 6 9 . . 3 5 . Heat Flow Errors 11 | . . . . . 4 3 . . . 3 1 Energy Discharges 11 | . . . . . 4 6 . . . 1 . Parts Fused 1 | . . . . . . 1 . . . . . Data Loss (minor) 7 | . . . . . 2 4 . . . 1 . Data Loss (major) 2 | . . . . . 1 . . . . 1 . Misfires 3 | . . . . . 1 1 . . . 1 . Weapon Failures 2 | . . . . . 2 . . . . . . Overload Shots . | . . . . . . . . . . . . Overflow Damage 181 | . . 29 . . 14 . 54 8 42 34 . Projectiles . | . . . . . . . . . . . . Explosions 181 | . . 29 . . 14 . 54 8 42 34 . Melee . | . . . . . . . . . . . . Knockbacks 2 | . . . 1 . . . . . 1 . . Impact 2 | . . . 1 . . . . . 1 . . Kinetic . | . . . . . . . . . . . . Secondary . | . . . . . . . . . . . . Self-Inflicted Damage 553 | . . 78 . . 79 109 40 44 144 59 . Shots 17 | . . 3 . . 3 5 1 1 3 1 . Rammed 18 | . . 1 5 . . 3 . . 8 1 . Targets Rammed 21 | . . 1 7 . . 3 1 . 8 1 . Kicked . | . . . . . . . . . . . . Crushed 3 | . . . 2 . . . 1 . . . . Highest Temperature 244 | . 20 18 16 . 244 242 83 42 81 196 172 Average Temperature 27 | . 7 11 5 . 88 80 24 24 15 21 93 Received Heat Transfer 3183 | . 192 20 396 10 . 54 774 180 837 720 . Siege Activations . | . . . . . . . . . . . . Robots Corrupted . | . . . . . . . . . . . . Combat Hostiles . | . . . . . . . . . . . . Parts Fried . | . . . . . . . . . . . . Impact Corruptions . | . . . . . . . . . . . . Robots Melted . | . . . . . . . . . . . . Combat Hostiles . | . . . . . . . . . . . . Parts Melted 1 | . . . 1 . . . . . . . . Heat Transferred . | . . . . . . . . . . . . Parts Sabotaged . | . . . . . . . . . . . . Parts Stolen . | . . . . . . . . . . . . Parts Stripped . | . . . . . . . . . . . . Power Chain Reactions . | . . . . . . . . . . . . Missiles Intercepted . | . . . . . . . . . . . . Alert | -11 -10 -10 -9 -9 -9 -8 -8 -8 -8 -7 -7 ------- Run | Jun Mat Min Mat Min Exi Min Mat Gar Sto Fac Was Peak Influence 1002 | . 187 105 315 200 . 186 254 1002 762 883 305 Initial 488 | . . 7 . 111 . . 13 71 488 257 305 Average 278 | . 71 31 161 52 . 60 129 481 579 441 305 Maximum Alert Level 3 | . . . 1 1 . . 1 3 3 3 1 Low Security (%) 53 | 100 100 100 71 99 . 100 90 11 . 14 . Level 1 14 | . . . 28 . . . 9 13 . 35 100 Level 2 25 | . . . . . . . . 50 89 37 . Level 3 6 | . . . . . . . . 25 10 12 . Level 4 . | . . . . . . . . . . . . Level 5 . | . . . . . . . . . . . . High Security . | . . . . . . . . . . . . Max Security . | . . . . . . . . . . . . Squads Dispatched 23 | . 1 . 3 . . 1 4 . 3 11 . Investigation 2 | . 1 . . . . . . . . 1 . Extermination 4 | . . . . . . . . . . 4 . Reinforcement 15 | . . . 3 . . 1 4 . 2 5 . Assault 2 | . . . . . . . . . 1 1 . Garrison . | . . . . . . . . . . . . Intercept . | . . . . . . . . . . . . Searches Triggered . | . . . . . . . . . . . . Construction Impeded 2 | . . . . . . 1 1 . . . . Haulers Reinforced 3 | . . . . . . . . . . 3 . Active Scanning Responses . | . . . . . . . . . . . . Cargo Convoy Interrupts . | . . . . . . . . . . . . Stealth | -11 -10 -10 -9 -9 -9 -8 -8 -8 -8 -7 -7 --------- Run | Jun Mat Min Mat Min Exi Min Mat Gar Sto Fac Was Distress Signals 13 | . 1 . 2 . . . 2 . 4 4 . Communications Jammed . | . . . . . . . . . . . . Distress Signals . | . . . . . . . . . . . . Times Spotted 256 | . 12 12 40 5 20 14 36 18 42 57 . Peak Tracking Total 9 | . 3 5 3 2 9 4 5 7 5 6 . Tactical Retreats 17 | . . 4 2 . 6 . 1 1 1 2 . Traps | -11 -10 -10 -9 -9 -9 -8 -8 -8 -8 -7 -7 ------- Run | Jun Mat Min Mat Min Exi Min Mat Gar Sto Fac Was Traps Triggered 12 | . 3 . 1 . . . . 3 1 4 . Indirectly . | . . . . . . . . . . . . Trap Hack Attempts . | . . . . . . . . . . . . Triggered . | . . . . . . . . . . . . Disarmed . | . . . . . . . . . . . . Reprogrammed . | . . . . . . . . . . . . Reused . | . . . . . . . . . . . . Traps Extracted . | . . . . . . . . . . . . Installed . | . . . . . . . . . . . . Triggered . | . . . . . . . . . . . . Machines | -11 -10 -10 -9 -9 -9 -8 -8 -8 -8 -7 -7 ---------- Run | Jun Mat Min Mat Min Exi Min Mat Gar Sto Fac Was Machines Disabled 31 | . . 1 . . 14 . 2 8 2 4 . Max in Single Turn 2 | . . 1 . . 2 . 1 2 1 2 . Garrison Relay 3 | . . . . . . . . 3 . . . Phase Generator 1 | . . . . . . . . 1 . . . Machines Repaired . | . . . . . . . . . . . . Machines Sabotaged . | . . . . . . . . . . . . Overloaded Fab Kills . | . . . . . . . . . . . . Hacking | -11 -10 -10 -9 -9 -9 -8 -8 -8 -8 -7 -7 --------- Run | Jun Mat Min Mat Min Exi Min Mat Gar Sto Fac Was Machines Accessed 40 | . 7 1 5 1 2 . 5 1 8 10 . Terminals 28 | . 6 1 3 . . . 2 1 8 7 . Fabricators 2 | . . . . . . . . . . 2 . Repair Stations 6 | . 1 . 2 . . . 2 . . 1 . Recycling Units . | . . . . . . . . . . . . Scanalyzers . | . . . . . . . . . . . . Garrison Access 1 | . . . . . . . 1 . . . . Total Hacks 104 | . 28 1 13 1 2 . 13 1 13 32 . Successful 50 | . 13 . 3 1 2 . 7 1 6 17 . Failed 54 | . 15 1 10 . . . 6 . 7 15 . Catastrophic 10 | . 3 . 1 . . . . . 2 4 . Database Lockouts . | . . . . . . . . . . . . Manual 55 | . 22 1 5 . 1 . 4 . 6 16 . Terminals 72 | . 23 1 6 . . . 5 1 13 23 . Fabricators 5 | . . . . . . . . . . 5 . Repair Stations 22 | . 5 . 7 . . . 6 . . 4 . Recycling Units . | . . . . . . . . . . . . Scanalyzers . | . . . . . . . . . . . . Garrison Access 2 | . . . . . . . 2 . . . . Terminal Hacks 28 | . 8 . . 1 2 . 2 1 6 8 . Record 1 | . . . . . 1 . . . . . . Part Schematic 1 | . 1 . . . . . . . . . . Robot Schematic 1 | . . . . . . . . . . 1 . Robot Analysis 2 | . 2 . . . . . . . . . . Open Door 5 | . . . . 1 . . . . 4 . . Branch Access Points 1 | . . . . . . . . . . 1 . Terminal Index 2 | . 1 . . . . . . . . 1 . Unreport Threat 3 | . . . . . . . . . 2 1 . Locate Traps 2 | . 1 . . . . . 1 . . . . Patrol Status 1 | . 1 . . . . . . . . . . Transport Status 1 | . . . . . . . . . . 1 . Recall Reinforcements 2 | . . . . . . . . . . 2 . Hauler Manifests 3 | . 1 . . . . . 1 . . 1 . Zone Layout 1 | . 1 . . . . . . . . . . Garrison Registry 1 | . . . . . . . . 1 . . . Derelict Proto ID Bank 1 | . . . . . 1 . . . . . . Fabricator Hacks 3 | . . . . . . . . . . 3 . Network Status 1 | . . . . . . . . . . 1 . Load Schematic 1 | . . . . . . . . . . 1 . Build 1 | . . . . . . . . . . 1 . Repair Station Hacks 15 | . 4 . 3 . . . 4 . . 4 . Scan Component 8 | . 2 . 2 . . . 2 . . 2 . Repair 7 | . 2 . 1 . . . 2 . . 2 . Recycling Unit Hacks . | . . . . . . . . . . . . Scanalyzer . | . . . . . . . . . . . . Garrison Access Hacks 1 | . . . . . . . 1 . . . . Unlock Access 1 | . . . . . . . 1 . . . . Unauthorized Hacks 3 | . 1 . . . . . . . . 2 . Terminals 2 | . 1 . . . . . . . . 1 . Operators 2 | . 1 . . . . . . . . 1 . Fabricators 1 | . . . . . . . . . . 1 . Prioritize 1 | . . . . . . . . . . 1 . Repair Stations . | . . . . . . . . . . . . Recycling Units . | . . . . . . . . . . . . Scanalyzers . | . . . . . . . . . . . . Garrison Access . | . . . . . . . . . . . . Data Cores Recovered . | . . . . . . . . . . . . Used . | . . . . . . . . . . . . Hacking Detections 32 | . 7 1 5 . . . 4 1 5 9 . Full Trace Events . | . . . . . . . . . . . . Feedback Events . | . . . . . . . . . . . . Feedback Blocked . | . . . . . . . . . . . . Robot Schematics Acquired 1 | . . . . . . . . . . 1 . Robots Built 1 | . . . . . . . . . . 1 . Authchips 1 | . . . . . . . . . . 1 . Time 20 | . . . . . . . . . . 20 . Total Robot Build Rating 1 | . . . . . . . . . . 1 . Part Schematics Acquired 1 | . 1 . . . . . . . . . . Parts Built . | . . . . . . . . . . . . Authchips . | . . . . . . . . . . . . Time . | . . . . . . . . . . . . Total Part Build Rating . | . . . . . . . . . . . . Parts Repaired 7 | . 2 . 1 . . . 2 . . 2 . Time 161 | . 52 . 13 . . . 70 . . 26 . Parts Recycled . | . . . . . . . . . . . . Recycled Matter . | . . . . . . . . . . . . Retrieved Matter . | . . . . . . . . . . . . Retrieved Components . | . . . . . . . . . . . . Parts Scanalyzed . | . . . . . . . . . . . . Part Schematics Acquired . | . . . . . . . . . . . . Parts Damaged . | . . . . . . . . . . . . Bothacking | -11 -10 -10 -9 -9 -9 -8 -8 -8 -8 -7 -7 ------------ Run | Jun Mat Min Mat Min Exi Min Mat Gar Sto Fac Was Used RIF Installer . | . . . . . . . . . . . . Robots Hacked . | . . . . . . . . . . . . Non-combat . | . . . . . . . . . . . . Combat . | . . . . . . . . . . . . Robot Hacks Applied . | . . . . . . . . . . . . Relay Couplers Released 14 | . . . . . . . . 14 . . . Machine Destruction 14 | . . . . . . . . 14 . . . Fabnet Peak Effective % . | . . . . . . . . . . . . Robots Rewired . | . . . . . . . . . . . . Allies Hacked . | . . . . . . . . . . . . Hacks Repelled . | . . . . . . . . . . . . Allies | -11 -10 -10 -9 -9 -9 -8 -8 -8 -8 -7 -7 -------- Run | Jun Mat Min Mat Min Exi Min Mat Gar Sto Fac Was Total Allies 7 | . . 3 . 3 . . . . . 1 . Largest Group 3 | . . 3 3 3 1 . . . . 1 . Highest-Rated Group 80 | . . 40 40 80 31 . . . . 10 . Highest-Rated Ally 31 | . . 16 16 31 31 . . . . 10 . Total Orders . | . . . . . . . . . . . . Ally Attacks 93 | . . 10 54 29 . . . . . . . Total Damage 999 | . . 74 527 398 . . . . . . . Kills 13 | . . 2 6 5 . . . . . . . Allies Corrupted . | . . . . . . . . . . . . Allies Melted . | . . . . . . . . . . . . Intel | -11 -10 -10 -9 -9 -9 -8 -8 -8 -8 -7 -7 ------- Run | Jun Mat Min Mat Min Exi Min Mat Gar Sto Fac Was Robot Analysis Total 2 | . 2 . . . . . . . . . . Derelict Logs Recovered 2 | . . 1 . 1 . . . . . . . Drone Launches . | . . . . . . . . . . . . Drone Recoveries . | . . . . . . . . . . . . Exploration | -11 -10 -10 -9 -9 -9 -8 -8 -8 -8 -7 -7 ------------- Run | Jun Mat Min Mat Min Exi Min Mat Gar Sto Fac Was Turns Passed 17874 | 83 968 810 2892 1083 2321 1028 1794 1967 2152 2740 36 Spaces Moved 7004 | 48 480 447 1199 487 871 399 584 466 708 1304 11 Core 6 | 6 . . . . . . . . . . . Treads 4089 | 42 480 447 407 . 290 399 584 466 708 255 11 Legs . | . . . . . . . . . . . . Wheels 2909 | . . . 792 487 581 . . . . 1049 . Hover . | . . . . . . . . . . . . Flight . | . . . . . . . . . . . . Fastest Speed 50 | 50 160 160 160 210 210 240 236 236 236 145 320 Average Speed 204 | 146 160 160 204 210 220 242 239 236 238 167 320 Slowest Speed 320 | 160 160 160 240 210 320 243 242 236 240 320 320 Overloaded Moves . | . . . . . . . . . . . . Propulsion Burnouts . | . . . . . . . . . . . . Robots Hopped . | . . . . . . . . . . . . Cave-ins Triggered . | . . . . . . . . . . . . Exploration Rate (%) 67 | 5 77 90 94 94 84 95 51 62 90 46 18 Regions Visited 11 Branch Regions 5 Pre-discovered Areas 3 | . . 1 . . 1 . . . 1 . . Known Exits Taken 1 | . . . . . . . 1 . . . . Unknown Exits Taken 8 | 1 1 1 1 1 1 1 . . 1 . . Scrap Searched 7 | . . 2 . 3 . 2 . . . . . Spaces Dug 77 | . . 27 . . . 16 11 18 2 3 . Terrain Destroyed 402 | . . 84 . . 56 52 32 94 13 71 . Melee 11 | . . . . . . . 2 4 2 3 . Projectile 32 | . . . . . 32 . . . . . . AOE 358 | . . 84 . . 23 52 30 90 11 68 . Terrain Rammed . | . . . . . . . . . . . . Walls Destroyed . | . . . . . . . . . . . . Machines Disabled . | . . . . . . . . . . . . Actions | -11 -10 -10 -9 -9 -9 -8 -8 -8 -8 -7 -7 --------- Run | Jun Mat Min Mat Min Exi Min Mat Gar Sto Fac Was Total 9376 | 57 617 517 1431 534 1097 428 820 1253 957 1654 11 Wait 1171 | . 62 32 46 34 37 . 113 719 50 78 . Move 6992 | 47 479 446 1198 486 870 398 583 463 707 1304 11 Hop . | . . . . . . . . . . . . Pick Up 115 | 3 17 8 27 3 18 . 12 1 12 14 . Fast Attach 31 | 6 8 . 2 . 1 . 4 . 4 6 . Attach 37 | . 1 3 3 . 4 1 9 . 4 12 . Detach 11 | . . . 2 . 3 . 1 . 2 3 . Swap 119 | 1 6 5 14 . 12 9 10 16 21 25 . Drop 108 | . 11 4 23 3 18 1 4 4 22 18 . Fire 731 | . 33 18 109 8 134 16 81 34 124 174 . Melee 20 | . . . . . . . 2 12 3 3 . Ram . | . . . . . . . . . . . . Kick . | . . . . . . . . . . . . Crush 21 | . . 1 7 . . 3 1 . 8 1 . Escape Stasis 20 | . . . . . . . . 4 . 16 . Rewire . | . . . . . . . . . . . . Trap . | . . . . . . . . . . . . Miscellaneous . | . . . . . . . . . . . . Route ------- -11/Junkyard -10/Materials (discovered 6 exits: *Mat x3 / *Min x2 / Sub) -10/Mines (discovered 3 exits: *Mat x2 / Sub) -9/Materials (discovered 5 exits: *Mat x3 / *Min x2) -9/Mines (discovered 2 exits: *Mat / *Exi) -9/Exiles -8/Mines (discovered 2 exits: *Mat x2) -8/Materials (discovered 2 exits: *Fac / Gar) -8/Garrison (discovered 3 exits: *Sto x3) -8/Storage -7/Factory (discovered 3 exits: [*Fac] / *Low x2) -7/Waste History --------- Turn | Location | Event 4 | -11/Junkyard | Discovered new exit (range 15) 84 | -11/Junkyard | Entered Materials 310 | -10/Materials | Discovered new exit (range 3) 316 | -10/Materials | Build established: Mutant 411 | -10/Materials | Discovered new exit (range 6) 621 | -10/Materials | Discovered new exit (range 8) 685 | -10/Materials | Discovered new exit (range 15) 714 | -10/Materials | Discovered new exit (range 15) 966 | -10/Materials | Repaired Lgt. Treads 994 | -10/Materials | Repaired Lgt. Treads 1002 | -10/Materials | Discovered new exit (range 11) 1052 | -10/Materials | Entered Mines 1053 | -10/Mines | Assembled infested the area 1058 | -10/Mines | Assisted by a Guerilla fighting off Assembled 1100 | -10/Mines | Discovered new exit (range 9) 1101 | -10/Mines | Learned location of Storage (-8) 1261 | -10/Mines | Destroyed 7 combat bots 1406 | -10/Mines | Discovered new exit (range 13) 1507 | -10/Mines | Identified exit to Subcaves 1672 | -10/Mines | Assisted by bots powering up and referring to "LRC-V3" 1862 | -10/Mines | Entered Materials 1862 | -9/Materials | Accompanied by 3 allies 1862 | -9/Materials | Evolved 2 slots: Propulsion x1, Utility x1 2006 | -9/Materials | Repaired Lgt. Treads 2409 | -9/Materials | Discovered new exit (range 5) 2722 | -9/Materials | Discovered new exit (range 14) 3232 | -9/Materials | Discovered new exit (range 7) 3646 | -9/Materials | Discovered new exit (range 16) 4300 | -9/Materials | Discovered new exit (range 10) 4754 | -9/Materials | Entered Mines 4915 | -9/Mines | Received a Mining Laser from a helpful Derelict 4970 | -9/Mines | Met a Derelict who couldn't figure out how to use a Trap Extractor 5372 | -9/Mines | Discovered new exit (range 4) 5813 | -9/Mines | Deemed a non-threat by the Exiles lab entrance 5816 | -9/Mines | Discovered new exit (range 5) 5837 | -9/Mines | Entered Exiles 5837 | -9/Exiles | Accompanied by 1 ally 5867 | -9/Exiles | Led the pair of lost Derelicts to a safe place 5888 | -9/Exiles | Met 8R-AWN 5924 | -9/Exiles | Met EX-HEX 6018 | -9/Exiles | Met EX-DEC 6058 | -9/Exiles | Learned location of Zion (-6) 6115 | -9/Exiles | Discovered new exit (range 14) 6257 | -9/Exiles | Met EX-BIN 6287 | -9/Exiles | Aligned with FarCom system 6289 | -9/Exiles | Given EX-Vault access code 6337 | -9/Exiles | Opened EX-Vault 6350 | -9/Exiles | Found XL Autogun Array 6393 | -9/Exiles | Warned to stay clear of 0b10 Research branches 7037 | -9/Exiles | Attacked by the Exiles 7067 | -9/Exiles | Core integrity fell below 50% 7237 | -9/Exiles | Destroyed 8R-AWN 7242 | -9/Exiles | Found Prototype Ballistic Gun 7245 | -9/Exiles | Found Prototype Ballistic Gun 7249 | -9/Exiles | Identified 8R-AWN's Boregun (x2) 7738 | -9/Exiles | Destroyed EX-BIN 7831 | -9/Exiles | Destroyed EX-DEC 7846 | -9/Exiles | Destroyed EX-HEX 8158 | -9/Exiles | Entered Mines 8413 | -8/Mines | Discovered new exit (range 8) 8999 | -8/Mines | Discovered new exit (range 10) 9186 | -8/Mines | Entered Materials 9186 | -8/Materials | Evolved 2 slots: Propulsion x1, Utility x1 9557 | -8/Materials | Repaired Med. Reactive Plating 9882 | -8/Materials | Build established: Scavenger-Mutant 10206 | -8/Materials | Discovered new exit (range 3) 10464 | -8/Materials | Lost 4 parts (1p2u1w) 10580 | -8/Materials | Repaired Lgt. Armor Plating 10973 | -8/Materials | Identified exit to Garrison 10980 | -8/Materials | Entered Garrison 11026 | -8/Garrison | Discovered new exit (range 56) 11026 | -8/Garrison | Discovered new exit (range 70) 11026 | -8/Garrison | Discovered new exit (range 46) 11079 | -8/Garrison | Garrison Relay disabled 11188 | -8/Garrison | Triggered checkpoint 12189 | -8/Garrison | Attempted to access garrison exit controls, blocked by remote lockdown 12266 | -8/Garrison | Triggered checkpoint 12328 | -8/Garrison | Triggered checkpoint 12575 | -8/Garrison | Attempted to access garrison exit controls, blocked by remote lockdown 12782 | -8/Garrison | Garrison Relay disabled 12884 | -8/Garrison | Garrison Relay disabled 12934 | -8/Garrison | Phase Generator disabled 12947 | -8/Garrison | Entered Storage 13669 | -8/Storage | Core integrity fell below 50% 13747 | -8/Storage | First assault squad dispatched 14078 | -8/Storage | Learned location of Armory (-3) 15042 | -8/Storage | Discovered new exit (range 8) 15099 | -8/Storage | Entered Factory 15099 | -7/Factory | Evolved 2 slots: Utility x2 15100 | -7/Factory | Identified exit to Lower Caves 15382 | -7/Factory | Repaired Lgt. Treads 15396 | -7/Factory | Repaired Lgt. Treads 16046 | -7/Factory | Build established: Hacker-Mutant 16620 | -7/Factory | Fabricated O-16 Technician? 16647 | -7/Factory | Discovered new exit (range 16) 17144 | -7/Factory | Build established: Scavenger-Mutant 17499 | -7/Factory | First assault squad dispatched 17839 | -7/Factory | Sucked down chute 17839 | -7/Factory | Entered Waste 17854 | -7/Waste | EMP discharged 17875 | -7/Waste | Self-destructed Last Messages --------------- 17790_ G-47 Trooper suffers critical hit (Destroy). 17790_ Destroyed Aluminum Leg. 17791_ Imp. Light Armor Plating destroyed. 17793_ G-47 Trooper destroyed. 17797_ Acquired 39 matter. 17798_ O-16 Technician: "IFF HANDSHAKE FAILED. SECURING TERMINAL." 17802_ ALERT: Hostiles spotted, dispatching reinforcements to Terminal F004. 17804_ Acquired 58 matter. 17816_ Penetrated by Slug. 17822_ Slug penetrates Wall. 17825_ Lgt. Treads destroyed. 17831_ Slug penetrates Wall. 17839_ Triggered Chute Trap. 17839_ A hatch slides open and sucks a vortex of air into the floor. LOCATION=UNKNOWN GOAL=ESCAPE 17844_ ALERT: Foreign system detected. Charging EMP. 17854_ System corrupted (+6). 17857_ System corrupted: Heat flow error (+204). Map ----- +----------------------------------------------------+ | ?????????????????????????????????????????????????? | | ?????????????????????????????????????????????????? | | ?????????????????????????????????????????????????? | | ?????????????????????????????????????????????????? | | ?????????????????????????????????????????????????? | | ?????????????????????????????????????????????????? | | ?????????????????????????????????????????????????? | | ?????????????????????????????????????????????????? | | ?????????????????????????????????????????????????? | | ?????????????????????????????????????????????????? | | ???????????????????????? ?????????????????????? | | ???????????????????????? #????????????????????? | | ???????????????????????# ###??????????????????? | | ??????????????????????? ??????????????????? | | ??????????????????????? ??????????????????? | | ??????????????????????? ???????????????????? | | ??????????????????????? ????????????????????? | | ???????????????????????# #????????????????????? | | ?????????############??# #????????????????????? | | ?????????# #??# #????????????????????? | | ?????????# #??# #????????????????????? | | ?????????# ! #### #????????????????????? | | ?????????# #????????????????????? | | ?????????# #????????????????????? | | ?????????# #????????????????????? | | ?????????# @ #????????????????????? | | ?????????# #### #????????????????????? | | ?????????# #??# #????????????????????? | | ?????????# #??# #????????????????????? | | ?????????############??# #????????????????????? | | ???????????????????????# #????????????????????? | | ??????????????????????? #????????????????????? | | ??????????????????????? #????????????????????? | | ??????????????????????? #????????????????????? | | ?????????????????????? #????????????????????? | | ??????????????????????## #????????????????????? | | ???????????????????????# #????????????????????? | | ???????????????????????# #????????????????????? | | ???????????????????????? #????????????????????? | | ???????????????????????? #????????????????????? | | ???????????????????????? ?????????????????????? | | ?????????????????????????????????????????????????? | | ?????????????????????????????????????????????????? | | ?????????????????????????????????????????????????? | | ?????????????????????????????????????????????????? | | ?????????????????????????????????????????????????? | | ?????????????????????????????????????????????????? | | ?????????????????????????????????????????????????? | | ?????????????????????????????????????????????????? | | ?????????????????????????????????????????????????? | +----------------------------------------------------+ Best States ------------- Heat Dissipation 48 Energy Generation 17 Energy Capacity 280 Matter Stores 300 Matter Capacity 300 Sight Range 16 Robot Scan Range 15 Terrain Scan Density 10 Armor Coverage 600 Resistance: KI 30 Core Shielding 20 Evasion (%) 40 Targeting Accuracy 5 Core Analysis 6 Recoil Reduction 4 Salvage Targeting 4 Offensive Hacking 20 Authchip Count 1 Item Schematics ----------------- Hcp. Storage Unit | -10/Materials | Hacked Robot Schematics ------------------ O-16 Technician | -7/Factory | Hacked Fabricated ------------ O-16 Technician | x1 | -7/Factory | Authchip Alien Tech Used ----------------- None Achievements -------------- None Challenges ------------ None Game ------ Seed RiotNullDoublenader Manual? 0 Play Time 01:15:29 Cumulative 528.8 hours Start 2023.12.10 @ 18:03:27 End 2023.12.10 @ 19:22:08 Sessions 1 Manual Loads 0 Difficulty Rogue Special Mode None Game No. 590 Rogue 503 Adventurer 87 Explorer 0 Win Type - Total 29 Types 8/0/16/1/1/0/3/0/0 Lore% 92 Gallery% 93 Achievement% 78 Wizard Run 0 Options --------- ASCII 0 Keyboard 1 Movement Numpad Keybinds 0 Fullscreen 1 Font 18/SmallcapsGlow Map View 76x50 Tactical HUD 1 Map Filters NONE Filters NONE Steam 1 RUN: 971493c9-6e31-45db-984c-e6559eef26af